fUST/lending_fUST_20241213
["ID","MTS","AMOUNT","RATE_DAILY","PERIOD"]
[345127883,1734053440685,-500.0,0.00027397,7]
[345127884,1734053440695,-500.0,0.00027397,7]
[345127886,1734053440705,-500.0,0.00027397,7]
[345127888,1734053440714,-500.0,0.00027397,7]
[345127890,1734053440724,-500.0,0.00027397,7]
[345127892,1734053440733,-505.28593765,0.00027397,7]
[345127894,1734053440743,-500.0,0.00027397,7]
[345127896,1734053440753,-151.0,0.00027397,7]
[345127898,1734053440763,-151.0,0.00027397,7]
[345127900,1734053440772,-724.88,0.00027397,7]
[345127901,1734053440783,-500.0,0.00027397,7]
[345127902,1734053440796,-500.0,0.00027397,7]
[345127903,1734053440806,-616.36512871,0.00027397,7]
[345127904,1734053440815,-500.0,0.00027397,7]
[345127905,1734053440826,-500.0,0.00027397,7]
[345127906,1734053440835,-500.0,0.00027397,7]
[345127907,1734053440848,-525.51,0.00027397,7]
[345127908,1734053440858,-177.38777858,0.00027397,7]
[345127909,1734053440868,-500.0,0.00027397,7]
[345127910,1734053440878,-705.43,0.00027397,7]
[345127911,1734053440888,-580.51,0.00027397,7]
[345127912,1734053440897,-513.49061508,0.00027397,7]
[345127913,1734053440907,-500.0,0.00027397,7]
[345127914,1734053440917,-500.0,0.00027397,7]
[345127915,1734053440927,-500.0,0.00027397,7]
[345127916,1734053440936,-500.0,0.00027397,7]
[345127917,1734053440946,-500.0,0.00027397,7]
[345127918,1734053440962,-500.0,0.00027397,7]
[345127919,1734053440979,-500.0,0.00027397,7]
[345127920,1734053440994,-774.67,0.00027397,7]
[345127921,1734053441008,-500.0,0.00027397,7]
[345127922,1734053441023,-500.0,0.00027397,7]
[345127923,1734053441039,-500.0,0.00027397,7]
[345127924,1734053441055,-500.0,0.00027397,7]
[345127925,1734053441070,-500.0,0.00027397,7]
[345127926,1734053441086,-500.0,0.00027397,7]
[345127927,1734053441100,-500.0,0.00027397,7]
[345127928,1734053441113,-500.0,0.00027397,7]
[345127929,1734053441127,-500.0,0.00027397,7]
[345127930,1734053441142,-2851.22,0.00027397,7]
[345127931,1734053441156,-773.43,0.00027397,7]
[345127932,1734053441167,-500.0,0.00027397,7]
[345127933,1734053441184,-500.0,0.00027397,7]
[345127934,1734053441196,-500.0,0.00027397,7]
[345127935,1734053441211,-500.0,0.00027397,7]
[345127936,1734053441226,-500.0,0.00027397,7]
[345127937,1734053441240,-518.33843547,0.00027397,7]
[345127938,1734053441257,-500.0,0.00027397,7]
[345127939,1734053441273,-500.0,0.00027397,7]
[345127940,1734053441284,-923.34,0.00027397,7]
[345127941,1734053441296,-500.0,0.00027397,7]
[345127942,1734053441310,-500.0,0.00027397,7]
[345127943,1734053441326,-500.0,0.00027397,7]
[345127944,1734053441339,-862.08,0.00027397,7]
[345127945,1734053441350,-934.06,0.00027397,7]
[345127946,1734053441363,-500.0,0.00027397,7]
[345127947,1734053441377,-500.0,0.00027397,7]
[345127948,1734053441389,-500.0,0.00027397,7]
[345127949,1734053441401,-500.0,0.00027397,7]
[345127950,1734053441415,-500.0,0.00027397,7]
[345127951,1734053441427,-956.23,0.00027397,7]
[345127952,1734053441439,-1804.76,0.00027397,7]
[345127953,1734053441452,-673.54,0.00027397,7]
[345127954,1734053441464,-500.0,0.00027397,7]
[345127955,1734053441480,-500.0,0.00027397,7]
[345127956,1734053441491,-897.01,0.00027397,7]
[345127957,1734053441504,-500.0,0.00027397,7]
[345127958,1734053441516,-500.0,0.00027397,7]
[345127959,1734053441528,-500.0,0.00027397,7]
[345127960,1734053441540,-570.98,0.00027397,7]
[345127961,1734053441552,-500.0,0.00027397,7]
[345127962,1734053441565,-500.0,0.00027397,7]
[345127963,1734053441577,-553.64922992,0.00027397,7]
[345127964,1734053441590,-500.0,0.00027397,7]
[345127965,1734053441603,-121.87668702,0.00027397,7]
[345127966,1734053442761,-378.12331298,0.00027397,7]
[345127967,1734053442771,-500.0,0.00027397,7]
[345127968,1734053442781,-500.0,0.00027397,7]
[345127969,1734053442791,-500.0,0.00027397,7]
[345127970,1734053442800,-781.63,0.00027397,7]
[345127971,1734053442810,-140.24668202,0.00027397,7]
[345127972,1734053442822,-359.75331798,0.00027397,7]
[345127973,1734053442831,-129.44600879,0.00027397,7]
[345127974,1734053442846,-432.61497213,0.00027397,7]
[345128047,1734053443789,-150.742,0.00025569,2]
[345128048,1734053443799,-775.07901908,0.00027397,7]
[345128049,1734053443809,-335.99450486,0.00027397,7]
[345128050,1734053443818,-1518.75,0.00027397,7]
[345128051,1734053443828,-705.85,0.00027397,7]
[345128052,1734053443839,-500.0,0.00027397,7]
[345128053,1734053443849,-462.78447606,0.00027397,7]
[345128083,1734053446632,-2429.79008825,0.00025313,2]
[345128124,1734053503232,174.0886799,0.00013973,2]
[345128131,1734053672149,250.0,0.00013699,2]
[345128133,1734054011602,700.0152172,0.00020222,2]
[345128135,1734054195239,1041.46537606,0.00020222,2]
[345128158,1734054553835,167.986438,0.00013973,2]
[345128169,1734054636955,-250.0,0.00021096,2]
[345128170,1734054636965,-1970.60627085,0.00024363,2]
[345128171,1734054636976,-3029.39372915,0.00024363,2]
[345128172,1734054636986,-495.52325269,0.0002496,2]
[345128173,1734054636996,-2010.48,0.00025,2]
[345128174,1734054637005,-188.298,0.00025541,2]
[345128175,1734054637017,-243.8121531,0.00025639,2]
[345128176,1734054637027,-205.8300619,0.00025642,2]
[345128177,1734054637037,-412.214,0.0002603,2]
[345128178,1734054637047,-300.0,0.00026573,2]
[345128179,1734054637056,-300.0,0.00026574,2]
[345128180,1734054637065,-320.4312846,0.00026575,2]
[345128181,1734054637075,-491.8226511,0.00026849,2]
[345128182,1734054637085,-153.0389248,0.00026849,2]
[345128183,1734054637095,-375.9748117,0.00026849,2]
[345128184,1734054637105,-362.0,0.00027,2]
[345128185,1734054637114,-204.056,0.00027104,15]
[345128186,1734054637123,-726.98,0.000272,8]
[345128187,1734054637133,-350.69499952,0.00027297,2]
[345128188,1734054637142,-522.71137394,0.00027297,2]
[345128189,1734054637152,-352.0,0.000273,13]
[345128190,1734054637161,-167.98848963,0.000273,15]
[345128191,1734054637171,-500.0,0.00027373,2]
[345128192,1734054637180,-500.0,0.00027373,2]
[345128193,1734054637189,-55434.7578981,0.00027395,120]
[345128194,1734054637199,-151.39869468,0.00027396,2]
[345128195,1734054637209,-223.44923198,0.00027396,2]
[345128196,1734054637218,-500.0,0.00027396,2]
[345128197,1734054637227,-224.29197278,0.00027396,2]
[345128198,1734054637239,-271.07631404,0.00027396,2]
[345128199,1734054637248,-198.75763818,0.00027396,2]
[345128200,1734054637257,-23508.81498736,0.00027397,2]
[345128201,1734054637267,-2492.65204769,0.00027397,2]
[345128202,1734054637276,-545.6463455,0.00027397,7]
[345128203,1734054637285,-500.0,0.00027397,7]
[345128204,1734054637297,-501.40083746,0.00027397,7]
[345128205,1734054637306,-500.0,0.00027397,7]
[345128206,1734054637315,-502.4422829,0.00027397,7]
[345128207,1734054637324,-500.0,0.00027397,7]
[345128208,1734054637333,-500.0,0.00027397,7]
[345128209,1734054637343,-500.0,0.00027397,7]
[345128210,1734054637353,-597.70575236,0.00027397,7]
[345128211,1734054637363,-500.0,0.00027397,7]
[345128212,1734054637373,-500.0,0.00027397,7]
[345128213,1734054637382,-631.07585838,0.00027397,7]
[345128214,1734054637391,-500.0,0.00027397,7]
[345128215,1734054637401,-500.0,0.00027397,7]
[345128216,1734054637411,-500.0,0.00027397,7]
[345128217,1734054637420,-500.0,0.00027397,7]
[345128218,1734054637429,-694.86,0.00027397,7]
[345128219,1734054637438,-556.49,0.00027397,7]
[345128220,1734054637448,-500.0,0.00027397,7]
[345128221,1734054637458,-500.0,0.00027397,7]
[345128222,1734054637467,-500.0,0.00027397,7]
[345128223,1734054637477,-500.0,0.00027397,7]
[345128224,1734054637487,-500.0,0.00027397,7]
[345128225,1734054637496,-547.24,0.00027397,7]
[345128226,1734054637505,-500.0,0.00027397,7]
[345128227,1734054637515,-500.0,0.00027397,7]
[345128228,1734054637524,-500.0,0.00027397,7]
[345128229,1734054637533,-500.0,0.00027397,7]
[345128230,1734054637543,-500.0,0.00027397,7]
[345128231,1734054637552,-500.0,0.00027397,7]
[345128232,1734054637561,-885.0,0.00027397,7]
[345128233,1734054637571,-500.0,0.00027397,7]
[345128234,1734054637580,-500.0,0.00027397,7]
[345128235,1734054637589,-500.0,0.00027397,7]
[345128236,1734054637598,-510.59471099,0.00027397,7]
[345128237,1734054637612,-500.0,0.00027397,7]
[345128238,1734054637621,-826.29,0.00027397,7]
[345128239,1734054637631,-500.0,0.00027397,7]
[345128240,1734054637640,-859.89,0.00027397,7]
[345128241,1734054637649,-500.0,0.00027397,7]
[345128242,1734054637658,-500.0,0.00027397,7]
[345128243,1734054637667,-500.0,0.00027397,7]
[345128244,1734054637877,-500.0,0.00027397,7]
[345128245,1734054637888,-500.0,0.00027397,7]
[345128246,1734054637897,-500.0,0.00027397,7]
[345128247,1734054637907,-500.0,0.00027397,7]
[345128248,1734054637917,-500.0,0.00027397,7]
[345128249,1734054637926,-500.0,0.00027397,7]
[345128250,1734054637936,-500.0,0.00027397,7]
[345128251,1734054637946,-644.9725057,0.00027397,7]
[345128252,1734054637955,-500.0,0.00027397,7]
[345128253,1734054637965,-500.0,0.00027397,7]
[345128254,1734054637975,-500.0,0.00027397,7]
[345128255,1734054637984,-1218.28,0.00027397,7]
[345128256,1734054637994,-500.0,0.00027397,7]
[345128257,1734054638003,-676.57,0.00027397,7]
[345128258,1734054638013,-500.0,0.00027397,7]
[345128259,1734054638022,-781.29,0.00027397,7]
[345128260,1734054638032,-500.0,0.00027397,7]
[345128261,1734054638042,-500.0,0.00027397,7]
[345128262,1734054638051,-500.0,0.00027397,7]
[345128263,1734054638061,-500.0,0.00027397,7]
[345128264,1734054638071,-500.0,0.00027397,7]
[345128265,1734054638080,-500.0,0.00027397,7]
[345128266,1734054638089,-500.0,0.00027397,7]
[345128267,1734054638100,-524.17040311,0.00027397,7]
[345128268,1734054638111,-500.0,0.00027397,7]
[345128269,1734054638121,-500.0,0.00027397,7]
[345128270,1734054638131,-694.55,0.00027397,7]
[345128271,1734054638140,-500.0,0.00027397,7]
[345128272,1734054638149,-500.0,0.00027397,7]
[345128273,1734054638159,-415.35074106,0.00027397,2]
[345128274,1734054638168,-561.11,0.00027397,7]
[345128275,1734054638177,-775.6,0.00027397,7]
[345128276,1734054638187,-920.01,0.00027397,7]
[345128277,1734054638197,-500.0,0.00027397,7]
[345128278,1734054638207,-782.03,0.00027397,7]
[345128279,1734054638217,-500.0,0.00027397,7]
[345128280,1734054638227,-500.0,0.00027397,7]
[345128281,1734054638236,-500.0,0.00027397,7]
[345128282,1734054638246,-500.0,0.00027397,7]
[345128283,1734054638255,-500.0,0.00027397,7]
[345128284,1734054638264,-500.0,0.00027397,7]
[345128285,1734054638274,-500.0,0.00027397,7]
[345128286,1734054638284,-500.0,0.00027397,7]
[345128287,1734054638294,-500.0,0.00027397,7]
[345128288,1734054638303,-551.79,0.00027397,7]
[345128289,1734054638312,-500.0,0.00027397,7]
[345128290,1734054638322,-558.38143651,0.00027397,7]
[345128291,1734054638331,-500.0,0.00027397,7]
[345128292,1734054638341,-500.0,0.00027397,7]
[345128293,1734054638350,-500.0,0.00027397,7]
[345128294,1734054638361,-500.0,0.00027397,7]
[345128295,1734054638370,-500.0,0.00027397,7]
[345128296,1734054638379,-650.27,0.00027397,7]
[345128299,1734054638388,-500.0,0.00027397,7]
[345128302,1734054638397,-507.40693395,0.00027397,7]
[345128305,1734054638406,-500.0,0.00027397,7]
[345128307,1734054638415,-500.0,0.00027397,7]
[345128309,1734054638425,-500.0,0.00027397,7]
[345128311,1734054638434,-555.12951062,0.00027397,7]
[345128313,1734054638444,-500.0,0.00027397,7]
[345128315,1734054638454,-500.0,0.00027397,7]
[345128317,1734054638463,-1000.0,0.00027397,7]
[345128319,1734054638473,-500.0,0.00027397,7]
[345128321,1734054638482,-500.0,0.00027397,7]
[345128323,1734054638491,-500.0,0.00027397,7]
[345128325,1734054638501,-500.0,0.00027397,7]
[345128327,1734054638510,-579.19936873,0.00027397,7]
[345128328,1734054638520,-500.0,0.00027397,7]
[345128330,1734054638529,-599.4,0.00027397,7]
[345128332,1734054638539,-500.0,0.00027397,7]
[345128335,1734054638549,-512.37465986,0.00027397,7]
[345128336,1734054638558,-500.0,0.00027397,7]
[345128339,1734054638568,-500.0,0.00027397,7]
[345128341,1734054638577,-500.0,0.00027397,7]
[345128343,1734054638586,-500.0,0.00027397,7]
[345128345,1734054638595,-500.0,0.00027397,7]
[345128347,1734054638605,-814.69,0.00027397,7]
[345128348,1734054638618,-1103.08,0.00027397,7]
[345128350,1734054638628,-920.07,0.00027397,7]
[345128352,1734054638637,-500.0,0.00027397,7]
[345128354,1734054638646,-500.0,0.00027397,7]
[345128356,1734054638656,-500.0,0.00027397,7]
[345128358,1734054638665,-500.0,0.00027397,7]
[345128360,1734054638674,-500.0,0.00027397,7]
[345128362,1734054638686,-313.40499394,0.00027397,7]
[345128365,1734054638696,-555.48,0.00027397,7]
[345128367,1734054638705,-504.52274084,0.00027397,7]
[345128368,1734054638715,-1055.91,0.00027397,7]
[345128370,1734054638725,-610.62812336,0.00027397,7]
[345128371,1734054638735,-1471.91,0.00027397,7]
[345128373,1734054638744,-292.49186953,0.00027397,7]
[345128374,1734054638753,-500.0,0.00027397,7]
[345128376,1734054638762,-500.0,0.00027397,7]
[345128377,1734054638771,-836.92,0.00027397,7]
[345128379,1734054638780,-500.0,0.00027397,7]
[345128380,1734054638789,-1040.74,0.00027397,7]
[345128382,1734054638798,-1688.95,0.00027397,7]
[345128385,1734054638807,-500.0,0.00027397,7]
[345128387,1734054638816,-500.0,0.00027397,10]
[345128390,1734054638825,-151.0,0.00027397,7]
[345128391,1734054638835,-151.0,0.00027397,7]
[345128393,1734054638844,-151.0,0.00027397,7]
[345128394,1734054638853,-152.428091,0.00027397,7]
[345128396,1734054638866,-500.0,0.00027397,7]
[345128397,1734054638875,-248.36041722,0.00027397,7]
[345128422,1734054639266,-251.63958278,0.00027397,7]
[345128424,1734054639276,-1070.22,0.00027397,7]
[345128426,1734054639285,-562.81366365,0.00027397,7]
[345128427,1734054639294,-840.21,0.00027397,7]
[345128429,1734054639304,-500.0,0.00027397,7]
[345128430,1734054639313,-500.0,0.00027397,7]
[345128432,1734054639323,-514.94,0.00027397,7]
[345128433,1734054639332,-381.7702596,0.00027397,7]
[345128434,1734054639345,-127.3997404,0.00027397,7]
[345128435,1734054639354,-500.0,0.00027397,7]
[345128436,1734054639365,-500.0,0.00027397,7]
[345128437,1734054639374,-500.0,0.00027397,7]
[345128438,1734054639384,-500.0,0.00027397,7]
[345128439,1734054639393,-535.24,0.00027397,7]
[345128440,1734054639403,-500.0,0.00027397,2]
[345128441,1734054639413,-151.0,0.00027397,7]
[345128442,1734054639423,-500.0,0.00027397,7]
[345128443,1734054639433,-151.0,0.00027397,7]
[345128444,1734054639442,-151.0,0.00027397,7]
[345128445,1734054639452,-151.0,0.00027397,7]
[345128446,1734054639462,-151.0,0.00027397,7]
[345128447,1734054639472,-151.0,0.00027397,7]
[345128448,1734054639485,-151.0,0.00027397,7]
[345128449,1734054639495,-290.148595,0.00027397,7]
[345128450,1734054639505,-1836.66,0.00027397,7]
[345128451,1734054639514,-500.0,0.00027397,7]
[345128452,1734054639524,-742.72,0.00027397,7]
[345128453,1734054639534,-500.0,0.00027397,7]
[345128454,1734054639544,-500.0,0.00027397,7]
[345128455,1734054639554,-151.0,0.00027397,7]
[345128456,1734054639563,-202.868299,0.00027397,7]
[345128457,1734054639573,-500.0,0.00027397,7]
[345128458,1734054639584,-319.21835844,0.00027397,7]
[345128477,1734054644006,-180.78164156,0.00027397,7]
[345128478,1734054644016,-500.0,0.00027397,7]
[345128479,1734054644025,-500.0,0.00027397,7]
[345128480,1734054644037,-500.0,0.00027397,7]
[345128481,1734054644046,-859.28,0.00027397,7]
[345128482,1734054644056,-1633.66,0.00027397,7]
[345128483,1734054644066,-676.33,0.00027397,7]
[345128484,1734054644076,-500.0,0.00027397,7]
[345128485,1734054644086,-895.47,0.00027397,7]
[345128486,1734054644095,-2733.01,0.00027397,7]
[345128487,1734054644105,-456.67854301,0.00027397,7]
[345128542,1734055521264,167.340008,0.00013973,2]
[345128665,1734055835442,-150.228,0.00025541,2]
[345128666,1734055835451,-150.742,0.00025541,2]
[345128667,1734055835461,-176.429375,0.000259,2]
[345128668,1734055835470,-205.138104,0.00025936,2]
[345128669,1734055835479,-309.2944973,0.00025957,2]
[345128670,1734055835488,-714.4583533,0.00025959,2]
[345128671,1734055835497,-1646.9916236,0.00026026,2]
[345128672,1734055835507,-418.451,0.0002603,2]
[345128673,1734055835516,-300.0,0.00026572,2]
[345128674,1734055835525,-300.0,0.00026574,2]
[345128675,1734055835535,-340.0,0.00027,2]
[345128676,1734055835544,-153.0,0.00027031,2]
[345128677,1734055835553,-673.6,0.00027176,15]
[345128678,1734055835562,-243.97643215,0.00027229,2]
[345128679,1734055835571,-666.0,0.00027297,2]
[345128680,1734055835580,-532.4376343,0.00027297,2]
[345128681,1734055835589,-151.0,0.000273,60]
[345128682,1734055835601,-334.0,0.000273,13]
[345128683,1734055835610,-315.62549955,0.000273,2]
[345128684,1734055835619,-500.0,0.00027373,2]
[345128685,1734055835628,-500.0,0.00027373,2]
[345128686,1734055835637,-150.01,0.00027396,2]
[345128687,1734055835647,-10835.3220346,0.00027397,2]
[345128896,1734055840248,-282.55790363,0.00023544,2]
[345128988,1734056631443,167.340008,0.00013973,2]
[345128991,1734056714845,298.0,0.000255,120]
[345129028,1734057032303,-1136.92995325,0.00022,2]
[345129029,1734057032315,-4060.212192,0.00022,2]
[345129030,1734057032325,-5000.0,0.0002268,2]
[345129031,1734057032335,-300.0,0.00022724,2]
[345129032,1734057032344,-300.0,0.00022724,2]
[345129033,1734057032354,-402.93312002,0.000236,2]
[345129034,1734057032364,-509.40628979,0.00024,2]
[345129035,1734057032373,-420.0,0.00024675,2]
[345129036,1734057032383,-484.75042099,0.00024951,2]
[345129037,1734057032392,-420.0,0.00024997,2]
[345129038,1734057032401,-1246.32602385,0.00026,2]
[345129039,1734057032411,-10724.29357881,0.00026,60]
[345129040,1734057032420,-400.448,0.0002603,2]
[345129041,1734057032647,-157.78226294,0.000261,60]
[345129042,1734057032658,-965.6323089,0.00026165,2]
[345129043,1734057032669,-6336.74647638,0.000266,2]
[345129044,1734057032678,-307.5081409,0.000266,2]
[345129045,1734057032688,-587.0,0.00026794,2]
[345129046,1734057032697,-597.4548942,0.000269,2]
[345129047,1734057032706,-318.0,0.00027,2]
[345129048,1734057032716,-30000.85600692,0.00027,2]
[345129049,1734057032725,-1316.28854108,0.00027,2]
[345129050,1734057032734,-501.28757509,0.00027014,2]
[345129051,1734057032744,-501.28757505,0.00027085,2]
[345129052,1734057032754,-597.45489414,0.00027114,2]
[345129053,1734057032764,-501.28757505,0.00027156,2]
[345129054,1734057032773,-501.28757505,0.00027226,2]
[345129055,1734057032787,-284.06294964,0.00027297,2]
[345129056,1734057032801,-501.28757505,0.00027297,2]
[345129057,1734057032811,-1000.0,0.000273,2]
[345129058,1734057032820,-597.45489414,0.00027329,2]
[345129059,1734057032831,-3205.671,0.00027346,2]
[345129060,1734057032841,-162.92975114,0.00027373,2]
[345129061,1734057032851,-501.31637355,0.00027373,2]
[345129062,1734057032860,-500.0,0.00027373,2]
[345129063,1734057032870,-501.33972693,0.00027373,2]
[345129064,1734057032880,-160.07666823,0.00027373,2]
[345129065,1734057032889,-500.0,0.00027373,2]
[345129066,1734057032899,-501.11402369,0.00027373,2]
[345129067,1734057032908,-150.01,0.00027396,2]
[345129068,1734057032917,-163.244,0.00027396,16]
[345129069,1734057032926,-5000.0,0.00027397,7]
[345129070,1734057032935,-5000.0,0.00027397,7]
[345129071,1734057032945,-5000.0,0.00027397,7]
[345129072,1734057032954,-500.0,0.00027397,7]
[345129073,1734057032963,-500.0,0.00027397,7]
[345129074,1734057032973,-500.0,0.00027397,7]
[345129075,1734057032983,-500.0,0.00027397,7]
[345129076,1734057032993,-500.0,0.00027397,7]
[345129077,1734057033003,-622.55985318,0.00027397,7]
[345129078,1734057033013,-500.0,0.00027397,7]
[345129079,1734057033023,-500.0,0.00027397,7]
[345129080,1734057033033,-500.0,0.00027397,7]
[345129081,1734057033043,-500.0,0.00027397,7]
[345129082,1734057033053,-500.0,0.00027397,7]
[345129083,1734057033062,-500.0,0.00027397,7]
[345129084,1734057033072,-624.77,0.00027397,7]
[345129085,1734057033083,-500.0,0.00027397,7]
[345129086,1734057033093,-154.043704,0.00027397,7]
[345129087,1734057033103,-500.0,0.00027397,7]
[345129088,1734057033113,-500.0,0.00027397,7]
[345129089,1734057033122,-500.0,0.00027397,7]
[345129090,1734057033131,-500.0,0.00027397,7]
[345129091,1734057033141,-500.0,0.00027397,7]
[345129092,1734057033151,-500.0,0.00027397,7]
[345129093,1734057033161,-500.0,0.00027397,7]
[345129094,1734057033171,-822.15,0.00027397,7]
[345129095,1734057033180,-1120.33,0.00027397,7]
[345129096,1734057033190,-500.0,0.00027397,7]
[345129097,1734057033199,-500.0,0.00027397,7]
[345129098,1734057033208,-500.0,0.00027397,7]
[345129099,1734057033218,-500.0,0.00027397,7]
[345129100,1734057033228,-760.34,0.00027397,7]
[345129101,1734057033238,-500.0,0.00027397,7]
[345129102,1734057033249,-500.0,0.00027397,7]
[345129103,1734057033259,-562.73,0.00027397,7]
[345129104,1734057033269,-500.0,0.00027397,7]
[345129105,1734057033282,-500.0,0.00027397,7]
[345129106,1734057033293,-500.0,0.00027397,7]
[345129107,1734057033310,-500.0,0.00027397,7]
[345129108,1734057033320,-500.0,0.00027397,7]
[345129109,1734057033329,-500.0,0.00027397,7]
[345129110,1734057033339,-656.31,0.00027397,7]
[345129111,1734057033349,-200.0,0.00027397,7]
[345129112,1734057033359,-500.0,0.00027397,7]
[345129113,1734057033370,-585.3,0.00027397,7]
[345129114,1734057033381,-500.0,0.00027397,7]
[345129115,1734057033391,-500.0,0.00027397,7]
[345129116,1734057033402,-500.0,0.00027397,7]
[345129117,1734057033412,-500.0,0.00027397,7]
[345129118,1734057033422,-500.0,0.00027397,7]
[345129119,1734057033431,-500.0,0.00027397,7]
[345129120,1734057033441,-500.0,0.00027397,7]
[345129121,1734057033452,-553.27,0.00027397,7]
[345129122,1734057033462,-500.0,0.00027397,7]
[345129123,1734057033473,-640.98,0.00027397,7]
[345129124,1734057033483,-500.0,0.00027397,7]
[345129125,1734057033493,-500.0,0.00027397,7]
[345129126,1734057033503,-473.62284424,0.00027397,7]
[345129127,1734057033512,-500.0,0.00027397,7]
[345129128,1734057033523,-500.0,0.00027397,7]
[345129129,1734057033532,-500.0,0.00027397,7]
[345129130,1734057033543,-500.0,0.00027397,7]
[345129131,1734057033552,-500.0,0.00027397,7]
[345129132,1734057033562,-500.0,0.00027397,7]
[345129133,1734057033572,-500.0,0.00027397,7]
[345129134,1734057033586,-500.0,0.00027397,7]
[345129135,1734057033597,-500.0,0.00027397,7]
[345129136,1734057033607,-500.0,0.00027397,7]
[345129137,1734057033616,-610.91,0.00027397,7]
[345129138,1734057033627,-500.0,0.00027397,7]
[345129139,1734057033637,-500.0,0.00027397,7]
[345129140,1734057033646,-500.0,0.00027397,7]
[345129141,1734057033657,-500.0,0.00027397,7]
[345129142,1734057033669,-500.0,0.00027397,7]
[345129143,1734057033680,-500.0,0.00027397,7]
[345129144,1734057033690,-500.0,0.00027397,7]
[345129145,1734057033700,-500.0,0.00027397,7]
[345129146,1734057033710,-500.0,0.00027397,7]
[345129147,1734057033720,-989.91,0.00027397,7]
[345129148,1734057033730,-500.0,0.00027397,7]
[345129149,1734057033739,-617.03236678,0.00027397,7]
[345129150,1734057033749,-500.0,0.00027397,7]
[345129151,1734057033759,-544.11076406,0.00027397,7]
[345129152,1734057033768,-500.0,0.00027397,7]
[345129153,1734057033782,-520.84608062,0.00027397,7]
[345129154,1734057033793,-500.0,0.00027397,7]
[345129155,1734057033802,-668.14,0.00027397,7]
[345129156,1734057033813,-500.0,0.00027397,7]
[345129157,1734057033823,-500.0,0.00027397,7]
[345129158,1734057033833,-500.0,0.00027397,7]
[345129159,1734057033843,-500.0,0.00027397,7]
[345129160,1734057033854,-233.69508315,0.00027397,7]
[345129161,1734057033864,-500.0,0.00027397,7]
[345129162,1734057033874,-500.0,0.00027397,7]
[345129163,1734057033885,-670.18,0.00027397,7]
[345129164,1734057033894,-500.0,0.00027397,7]
[345129165,1734057033904,-500.0,0.00027397,7]
[345129166,1734057033914,-500.0,0.00027397,7]
[345129167,1734057033924,-348.01451009,0.00027397,7]
[345129168,1734057033934,-675.68,0.00027397,7]
[345129169,1734057033943,-500.0,0.00027397,7]
[345129170,1734057033953,-778.47,0.00027397,7]
[345129171,1734057033962,-500.0,0.00027397,7]
[345129172,1734057033972,-500.0,0.00027397,7]
[345129173,1734057033982,-500.0,0.00027397,7]
[345129174,1734057033992,-500.0,0.00027397,7]
[345129175,1734057034002,-500.0,0.00027397,7]
[345129176,1734057034012,-500.0,0.00027397,7]
[345129177,1734057034023,-500.0,0.00027397,7]
[345129178,1734057034039,-550.25,0.00027397,7]
[345129179,1734057034049,-507.39521476,0.00027397,7]